bitfinex/quotes_ETHUSD_20250415
["timestamp","ask_amount","ask_price","bid_price","bid_amount"]
[1744689299319,13.515621,1636.9,1636.6,0.33958723]
[1744689300020,7.406181,1636.9,1636.6,0.33958723]
[1744689300354,12.876181,1636.9,1636.6,0.33958723]
[1744689301015,6.10948,1636.8,1636.6,0.33958723]
[1744689301355,6.10948,1636.8,1636.7,0.33958723]
[1744689301754,12.876181,1636.9,1636.7,0.33958723]
[1744689302754,18.985581,1636.9,1636.7,0.33958723]
[1744689303556,18.985521,1636.9,1636.6,0.33958723]
[1744689304155,18.985521,1636.9,1636.7,0.33958723]
[1744689304452,6.10948,1636.8,1636.7,0.33958723]
[1744689304760,12.876181,1636.9,1636.7,0.33958723]
[1744689305343,12.876181,1636.9,1636.6,0.33958723]
[1744689305954,12.876181,1636.9,1636.7,0.33958723]
[1744689306557,18.985591,1636.9,1636.7,0.33958723]
[1744689307058,12.876181,1636.9,1636.6,0.33958723]
[1744689307268,5.47,1636.9,1636.6,6.44965723]
[1744689307423,5.47,1636.9,1636.8,6.86428]
[1744689307823,5.47,1636.9,1636.8,0.7548]
[1744689308458,5.47,1636.9,1636.8,1.09438723]
[1744689308761,5.47,1636.9,1636.8,0.33958723]
[1744689309143,5.47,1636.9,1636.8,6.44906723]
[1744689309438,5.47,1636.9,1636.8,0.33958723]
[1744689311221,6.10849,1637.1,1636.8,0.33958723]
[1744689312041,7.959434,1637.1,1636.8,0.33958723]
[1744689312358,6.10888,1637.0,1636.8,0.33958723]
[1744689312662,6.10888,1637.0,1636.9,0.33958723]
[1744689312820,6.88038,1637.0,1636.9,0.33958723]
[1744689313024,9.88038,1637.0,1636.9,0.33958723]
[1744689313225,12.64828967,1637.0,1636.9,0.33958723]
[1744689313544,6.86867,1636.6,1636.4,0.33958723]
[1744689314357,6.86867,1636.6,1636.5,0.33958723]
[1744689315346,6.86867,1636.6,1636.4,0.33958723]
[1744689316459,12.39323,1636.7,1636.4,0.33958723]
[1744689317323,20.353602,1636.7,1636.4,0.33958723]
[1744689317519,5.47,1636.7,1636.5,6.11058]
[1744689317826,0.8133,1636.9,1636.6,3.73076271]
[1744689317827,6.92246,1636.9,1636.6,3.73076271]
[1744689318157,0.8133,1636.9,1636.4,1.11418723]
[1744689318364,6.11001,1636.7,1636.4,0.7746]
[1744689318524,6.1095,1636.8,1636.4,6.88541]
[1744689318960,6.1095,1636.8,1636.5,0.33953551]
[1744689319523,6.1095,1636.8,1636.5,6.45013551]
[1744689319819,6.1095,1636.8,1636.6,0.33953551]
[1744689320757,0.8133,1636.9,1636.6,6.44972551]
[1744689321338,0.8133,1636.9,1636.7,0.33953551]
[1744689322163,0.8133,1636.9,1636.6,6.11019]
[1744689322570,5.47,1637.0,1636.7,0.808]
[1744689322865,5.47,1637.0,1636.7,10.64842271]
[1744689323572,5.47,1637.0,1636.8,0.33908638]
[1744689324282,5.47,1637.0,1636.7,10.64842271]
[1744689325869,5.47,1637.0,1636.7,16.75812271]
[1744689326369,5.47,1637.0,1636.8,0.33906877]
[1744689326729,11.57879,1637.0,1636.8,0.33906877]
[1744689326962,17.68778,1637.0,1636.7,0.808]
[1744689327569,6.89293,1637.6,1637.2,6.10798]
[1744689327875,14.235343,1637.6,1637.3,3.73076271]
[1744689328026,8.128623,1637.6,1637.3,3.73076271]
[1744689329801,14.235363,1637.6,1637.3,3.73076271]
[1744689330097,8.128623,1637.6,1637.3,3.73076271]
[1744689330698,14.235363,1637.6,1637.3,3.73076271]
[1744689331395,0.31458995,1637.5,1637.3,3.73076271]
[1744689331601,6.10725,1637.4,1637.1,4.54896271]
[1744689331774,12.5324843,1637.4,1637.1,3.73076271]
[1744689332497,6.4250043,1637.4,1637.1,3.73076271]
[1744689332673,12.98861,1637.3,1636.9,9.83984271]
[1744689332999,0.31715575,1637.3,1637.0,0.7515]
[1744689333202,6.10725,1637.4,1637.1,3.73076271]
[1744689333355,0.31707024,1637.3,1637.1,3.73076271]
[1744689333558,6.10725,1637.4,1637.1,3.73076271]
[1744689333792,0.31638611,1637.3,1637.1,3.73076271]
[1744689333976,0.7731,1637.5,1637.2,6.10798]
[1744689334185,0.31638611,1637.4,1637.2,6.10798]
[1744689337407,0.31638611,1637.4,1637.0,6.8601]
[1744689337705,6.42384611,1637.4,1637.0,6.86003]
[1744689338006,0.31638611,1637.4,1637.2,6.10797]
[1744689338903,0.31638611,1637.4,1637.2,12.21583]
[1744689339065,0.31638611,1637.4,1637.2,6.10786]
[1744689339270,0.31638611,1637.4,1637.2,12.2157]
[1744689339905,0.31638611,1637.4,1637.2,6.10784]
[1744689340712,6.10815,1637.2,1636.8,9.84008271]
[1744689340898,6.10815,1637.2,1636.9,6.10909]
[1744689341080,0.32220252,1637.1,1636.9,6.10909]
[1744689341281,6.10815,1637.2,1636.9,6.10909]
[1744689341481,0.32220252,1637.1,1636.9,6.10909]
[1744689341681,6.10815,1637.2,1636.9,6.10909]
[1744689341881,0.32220252,1637.1,1636.8,9.84008271]
[1744689342097,6.1085,1637.1,1636.8,9.84008271]
[1744689342283,0.32220252,1637.0,1636.8,9.84008271]
[1744689342774,0.32220252,1637.0,1636.8,9.90117016]
[1744689343613,0.32220252,1637.0,1636.8,9.90112016]
[1744689343782,6.10815,1637.2,1636.9,6.1091]
[1744689343986,0.32220252,1637.1,1636.9,6.1091]
[1744689344288,6.10815,1637.2,1636.9,6.9057]
[1744689344507,0.3198934,1637.1,1636.9,6.9057]
[1744689344816,6.10815,1637.2,1636.9,6.9057]
[1744689345017,0.3198934,1637.1,1636.9,6.9057]
[1744689345219,6.10815,1637.2,1636.9,6.9057]
[1744689345425,0.3198934,1637.1,1636.9,6.9057]
[1744689345585,12.2165,1637.2,1636.8,10.65163271]
[1744689345787,0.3198934,1637.1,1636.8,10.65163271]
[1744689345986,18.4525,1637.3,1636.9,6.10898]
[1744689346215,0.3198934,1637.2,1636.9,6.10898]
[1744689346686,6.4279034,1637.2,1636.9,6.10898]
[1744689349750,0.3198934,1637.2,1636.9,12.21796]
[1744689350421,0.3198934,1637.2,1637.0,0.33839068]
[1744689351622,0.3198934,1637.2,1636.9,12.21796]
[1744689352829,0.3198934,1637.2,1636.9,6.10898]
[1744689353037,0.3198934,1637.2,1637.0,0.33856106]
[1744689353743,0.3198934,1637.2,1636.9,6.10898]
[1744689355099,0.3198934,1637.2,1637.0,0.33870869]
[1744689356042,0.3198934,1637.2,1637.1,6.10836]
[1744689356340,0.3198934,1637.2,1637.1,7.24786869]
[1744689356915,6.8991,1637.5,1637.2,6.10797]
[1744689357545,6.8991,1637.5,1637.3,0.33870869]
[1744689358240,0.31801192,1637.4,1637.3,0.33870869]
[1744689358742,0.31801192,1637.4,1637.2,6.10797]
[1744689360153,0.31801192,1637.4,1637.3,0.3386783]
[1744689360811,0.31801192,1637.4,1637.1,13.01739]
[1744689361924,0.31801192,1637.4,1637.2,0.33868349]
[1744689362625,6.42525192,1637.4,1637.2,0.33868349]
[1744689362815,6.42525192,1637.4,1637.1,6.10823]
[1744689363016,0.31801192,1637.4,1637.1,13.04905]
[1744689364133,0.31801192,1637.4,1637.2,0.33855778]
[1744689364721,6.42533192,1637.4,1637.2,0.33855778]
[1744689364924,6.10761,1637.3,1637.2,0.33855778]
[1744689365129,6.86871,1637.3,1637.2,0.33855778]
[1744689365340,8.51911954,1637.3,1636.9,6.10904]
[1744689365558,7.18971535,1637.3,1636.9,12.21796]
[1744689365734,6.42861535,1637.3,1637.0,6.94121]
[1744689365932,0.32100535,1637.3,1637.0,13.04974]
[1744689366335,6.8684,1637.4,1637.1,6.44684092]
[1744689366517,0.32100535,1637.2,1637.1,6.44684092]
[1744689367073,0.7611,1637.4,1637.1,6.44684092]
[1744689367377,0.32100535,1637.3,1637.1,6.44684092]
[1744689367668,0.7611,1637.4,1637.1,6.44684092]
[1744689367981,0.32100535,1637.3,1637.2,0.33859092]
[1744689368651,6.86837,1637.4,1637.2,0.33859092]
[1744689368857,0.32100535,1637.3,1637.2,0.33859092]
[1744689369041,6.86837,1637.4,1637.2,0.33859092]
[1744689369242,0.32100535,1637.3,1637.2,6.10798]
[1744689369467,12.39721,1637.6,1637.2,12.98346]
[1744689369665,0.31946591,1637.5,1637.2,12.98346]
[1744689370182,0.31946591,1637.5,1637.3,6.1076]
[1744689370367,0.31946591,1637.5,1637.4,6.10724]
[1744689370567,0.31946591,1637.5,1637.4,6.44579791]
[1744689371050,0.31946591,1637.5,1637.4,11.05723195]
[1744689371258,60.66292,1638.1,1637.7,6.10603]
[1744689371572,6.38575791,1638.0,1637.7,6.10603]
[1744689372842,0.31946591,1638.0,1637.7,6.10603]
[1744689373782,0.31946591,1638.0,1637.7,6.85993]
[1744689373978,0.31946591,1638.0,1637.7,7.31920607]
[1744689374179,0.31946591,1638.0,1637.8,6.1055]
[1744689374349,0.31946591,1638.0,1637.9,6.10537]
[1744689374552,11.56229,1638.2,1637.9,6.10537]
[1744689374754,0.31946591,1638.0,1637.9,6.10537]
[1744689374978,11.56229,1638.2,1637.9,6.10537]
[1744689375185,0.32485194,1638.0,1637.9,6.10537]
[1744689375379,11.56229,1638.2,1637.9,6.10537]
[1744689375581,0.32485194,1638.0,1637.9,6.92013229]
[1744689375884,5.458,1638.2,1637.9,13.30179652]
[1744689376086,0.32485194,1638.1,1638.0,9.83576271]
[1744689376382,5.458,1638.2,1638.0,9.83576271]
[1744689376574,0.32485194,1638.1,1638.0,9.83576271]
[1744689376974,5.458,1638.2,1638.0,9.83576271]
[1744689377190,0.32485194,1638.1,1638.0,9.83576271]
[1744689377492,5.458,1638.2,1638.0,9.83576271]
[1744689377689,0.32485194,1638.1,1638.0,9.83576271]
[1744689377864,5.458,1638.2,1638.0,9.83576271]
[1744689378064,0.32485194,1638.1,1638.0,15.94055271]
[1744689378271,5.458,1638.2,1638.0,9.83555271]
[1744689378471,0.32698811,1638.1,1638.0,9.83555271]
[1744689378677,5.458,1638.2,1638.0,15.94041271]
[1744689378989,0.32698811,1638.1,1638.0,15.94041271]
[1744689379155,0.32698811,1638.1,1638.0,9.83555271]
[1744689379491,0.05,1638.4,1638.1,6.10461]
[1744689379673,0.05,1638.4,1638.1,6.88151]
[1744689380193,0.05,1638.4,1638.3,6.10388]
[1744689380388,0.05,1638.4,1638.3,6.88078]
[1744689380952,0.05,1638.4,1638.3,7.3304632]
[1744689388305,0.34653545,1638.4,1638.3,7.3304632]
[1744689390076,7.23076545,1638.4,1638.1,3.73076271]
[1744689390498,1.12723545,1638.4,1638.1,9.83516271]
[1744689390718,1.12723545,1638.4,1638.1,9.89619935]
[1744689390901,1.12723545,1638.4,1638.1,9.83516271]
[1744689391069,7.23075545,1638.4,1638.1,3.73076271]
[1744689392107,7.23075545,1638.4,1638.1,9.83536271]
[1744689392311,1.12723545,1638.4,1638.2,0.6097208]
[1744689392616,1.12723545,1638.4,1638.1,9.83536271]
[1744689392781,7.23076545,1638.4,1638.1,10.28376584]
[1744689392981,1.12723545,1638.4,1638.1,10.28376584]
[1744689393174,1.12723545,1638.4,1638.1,16.38819584]
[1744689393389,0.34653545,1638.4,1638.2,6.1042]
[1744689396517,0.34653545,1638.4,1638.2,13.0141]
[1744689397025,0.34653545,1638.4,1638.3,9.83464271]
[1744689397196,0.34653545,1638.4,1638.3,9.8956757]
[1744689397514,0.34653545,1638.4,1638.3,9.83464271]
[1744689397813,0.34653545,1638.4,1638.3,9.8956729]
[1744689398620,0.34653545,1638.4,1638.3,9.89567298]
[1744689398791,0.34653545,1638.4,1638.3,9.83464271]
[1744689399523,0.34653545,1638.4,1638.3,10.17158784]
[1744689399718,0.34653545,1638.4,1638.3,0.33694513]
[1744689400303,0.34653545,1638.4,1638.3,6.50185908]
[1744689400625,0.34653545,1638.4,1638.3,6.44082513]
[1744689400921,0.34653545,1638.4,1638.3,6.50185563]
[1744689401425,0.34653545,1638.4,1638.3,6.44082513]
[1744689401818,0.34653545,1638.4,1638.3,6.99082513]
[1744689402182,0.34653545,1638.4,1638.3,9.99082513]
[1744689402407,0.34653545,1638.4,1638.3,9.44082513]
[1744689402611,0.34653545,1638.4,1638.3,6.44082513]
[1744689403122,0.34653545,1638.4,1638.3,0.33694513]
[1744689403305,0.34653545,1638.4,1638.3,6.44082513]
[1744689403690,0.34653545,1638.4,1638.3,6.50185691]
[1744689404090,0.34653545,1638.4,1638.3,6.44082513]
[1744689405315,0.34653545,1638.4,1638.3,0.33694513]
[1744689410951,6.45004545,1638.4,1638.3,0.33694513]
[1744689412260,6.10394,1638.3,1638.0,6.10482]
[1744689412464,0.289182,1638.2,1638.0,6.10482]
[1744689412760,0.289182,1638.2,1638.0,7.17934176]
[1744689412966,0.289182,1638.2,1638.0,6.56962096]
[1744689413331,0.289182,1638.2,1638.1,0.33823543]
[1744689414167,7.222742,1638.2,1638.1,0.33823543]
[1744689414469,7.222742,1638.2,1637.7,16.69356271]
[1744689414470,6.10474,1638.1,1637.7,16.69356271]
[1744689414629,0.28789623,1638.0,1637.7,16.69356271]
[1744689415270,0.28789623,1638.0,1637.8,0.3381738]
[1744689416072,0.28789623,1638.0,1637.7,16.69356271]
[1744689416073,0.28789623,1638.0,1637.9,0.3381738]
[1744689416567,7.22219623,1638.0,1637.9,0.3381738]
[1744689417338,7.22219623,1638.0,1637.7,10.29921862]
[1744689417665,1.11719623,1638.0,1637.7,16.40518862]
[1744689418164,7.22220623,1638.0,1637.8,0.33781291]
[1744689418365,6.10537,1637.9,1637.8,0.33781291]
[1744689418732,0.28789623,1637.9,1637.8,0.33781291]
[1744689419091,0.28789623,1637.9,1637.7,6.1061]
[1744689419369,0.28789623,1637.9,1637.6,6.10631]
[1744689419748,0.28789623,1637.9,1637.7,0.33767807]
[1744689420650,0.28789623,1637.9,1637.6,12.21267]
[1744689420875,0.28789623,1637.9,1637.7,6.85688]
[1744689421035,13.03917,1638.1,1637.7,6.85688]
[1744689421231,0.28789623,1638.0,1637.7,6.85688]
[1744689421935,0.28789623,1638.0,1637.7,12.96287]
[1744689422135,0.28789623,1638.0,1637.7,6.85688]
[1744689423175,0.28789623,1638.0,1637.7,12.96288]
[1744689423474,0.28789623,1638.0,1637.7,12.9628]
[1744689424773,0.28789623,1638.0,1637.7,6.85682]
[1744689424965,0.28789623,1638.0,1637.7,12.96278]
[1744689425787,0.28789623,1638.0,1637.8,6.10571]
[1744689425939,0.28789623,1638.0,1637.9,10.69438499]
[1744689426140,12.35415,1638.4,1638.1,6.10461]
[1744689426373,0.28198049,1638.3,1638.2,6.10426]
[1744689426883,0.28206625,1638.3,1638.2,6.10426]
[1744689427088,0.8066,1638.4,1638.2,6.10426]
[1744689427396,0.28206625,1638.3,1638.2,6.10426]
[1744689427690,0.8066,1638.4,1638.2,6.10426]
[1744689427880,0.28206625,1638.3,1638.2,6.10426]
[1744689428054,0.8066,1638.4,1638.2,6.10426]
[1744689428256,0.28206625,1638.3,1638.2,6.10426]
[1744689428467,0.8066,1638.4,1638.2,6.10426]
[1744689428793,0.28206625,1638.3,1638.2,6.10426]
[1744689429093,0.8066,1638.4,1638.2,6.10426]
[1744689429317,0.28206625,1638.3,1638.2,6.10426]
[1744689429581,0.8066,1638.4,1638.2,6.10426]
[1744689429789,0.28206625,1638.3,1638.2,6.10426]
[1744689430094,0.8066,1638.4,1638.2,6.10426]
[1744689430268,0.28206625,1638.3,1638.2,6.10426]
[1744689430594,0.8066,1638.4,1638.2,6.10426]
[1744689430769,0.28206625,1638.3,1638.2,6.10426]
[1744689430970,0.8066,1638.4,1638.2,6.10426]
[1744689431173,0.28206625,1638.3,1638.2,6.10426]
[1744689431684,0.8066,1638.4,1638.2,6.10426]
[1744689432000,0.26062764,1638.3,1638.2,6.10426]
[1744689432298,0.8066,1638.4,1638.2,6.10426]
[1744689432501,0.26277347,1638.3,1638.2,13.03993]
[1744689432686,0.05,1638.4,1638.3,6.65388]
[1744689432995,0.31277347,1638.4,1638.3,6.65388]
[1744689433157,0.05,1638.4,1638.3,6.65388]
[1744689433360,0.31277347,1638.4,1638.3,6.99098829]
[1744689433864,0.31277347,1638.4,1638.3,9.99098829]
[1744689434883,0.31277347,1638.4,1638.3,9.44098829]
[1744689435482,0.31277347,1638.4,1638.3,0.33710829]
[1744689435676,0.31277347,1638.4,1638.1,6.10457]
[1744689435905,0.8233,1638.3,1638.1,6.10457]
[1744689436210,0.8233,1638.3,1637.9,0.8317]
[1744689436392,0.8088,1638.1,1637.8,6.10562]
[1744689436591,0.8088,1638.1,1637.8,12.21117]
[1744689436768,0.8088,1638.1,1637.9,6.10536]
[1744689436963,0.26277347,1638.0,1637.9,6.10536]
[1744689439303,0.26277347,1638.0,1637.8,6.10555]
[1744689440605,0.26277347,1638.0,1637.8,12.21112]
[1744689440824,0.26277347,1638.0,1637.9,6.10537]
[1744689441016,0.26277347,1638.0,1637.9,6.4427631]
[1744689441510,13.02265,1638.3,1637.9,6.4427631]
[1744689441668,0.26277347,1638.2,1637.9,6.4427631]
[1744689441869,0.26277347,1638.2,1637.9,6.10537]
[1744689442135,0.8086,1638.1,1637.7,6.86488]
[1744689442314,6.91337,1638.1,1637.7,12.97081]
[1744689442604,0.26277347,1638.0,1637.7,12.97081]
[1744689442913,0.26277347,1638.0,1637.8,0.3374814]
[1744689443676,0.26277347,1638.0,1637.7,6.10593]
[1744689445015,0.26277347,1638.0,1637.7,12.21185]
[1744689445176,0.26277347,1638.0,1637.9,6.10537]
[1744689445384,6.8788,1638.3,1637.9,12.21074]
[1744689445594,0.26277347,1638.0,1637.9,12.21074]
[1744689445793,6.87895,1638.3,1637.9,6.10537]
[1744689446008,0.26277347,1638.0,1637.9,6.10537]
[1744689446208,6.10436,1638.2,1637.9,6.10537]
[1744689446408,0.26071231,1638.0,1637.9,6.10537]
[1744689446603,6.10436,1638.2,1637.9,6.10537]
[1744689446808,1.01191231,1638.0,1637.8,6.10572]
[1744689447027,0.7512,1638.0,1637.8,6.10572]
[1744689447223,0.26071231,1637.9,1637.8,6.10572]
[1744689447798,0.7512,1638.1,1637.8,12.54892895]
[1744689448001,0.26071231,1637.9,1637.8,12.54892895]
[1744689448328,6.10436,1638.2,1637.9,6.10524]
[1744689448329,6.90656,1638.2,1637.9,6.10524]
[1744689449231,0.8022,1638.2,1637.9,6.10519]
[1744689449394,0.8022,1638.2,1638.0,6.10498]
[1744689449928,6.90648,1638.2,1637.9,6.10519]
[1744689451027,0.8022,1638.2,1637.9,6.10519]
[1744689451331,11.59755,1638.4,1638.0,6.105]
[1744689451525,12.41685,1638.4,1638.1,6.10463]
[1744689451927,12.41685,1638.4,1638.0,6.105]
[1744689452128,6.10396,1638.3,1638.0,6.105]
[1744689452929,0.8693,1638.4,1637.8,10.62930271]
[1744689453130,0.8693,1638.4,1638.1,6.1045]
[1744689453507,6.97283,1638.4,1638.1,6.1045]
[1744689453939,0.25976766,1638.3,1638.1,6.1045]
[1744689454147,6.97283,1638.4,1638.1,6.1045]
[1744689454444,0.25976766,1638.3,1638.1,6.1045]
[1744689454831,6.97283,1638.4,1638.1,6.1045]
[1744689455031,0.25976766,1638.2,1638.1,6.1045]
[1744689455230,6.97283,1638.4,1638.1,6.1045]
[1744689455403,0.25976766,1638.2,1638.1,6.1045]
[1744689455610,6.97283,1638.4,1638.1,6.1045]
[1744689456123,0.25976766,1638.3,1638.1,6.1045]
[1744689456347,6.97283,1638.4,1638.1,6.1045]
[1744689456647,0.25976766,1638.3,1638.1,6.1045]
[1744689456954,6.97283,1638.4,1638.1,6.1045]
[1744689457110,0.25976766,1638.3,1638.1,6.1045]
[1744689457452,6.97283,1638.4,1638.1,6.1045]
[1744689457607,0.25976766,1638.2,1638.1,6.1045]
[1744689457809,6.97283,1638.4,1638.1,6.1045]
[1744689458037,0.25976766,1638.2,1638.1,6.1045]
[1744689458238,6.97283,1638.4,1638.1,6.1045]
[1744689458444,0.25976766,1638.2,1638.1,6.1045]
[1744689458747,0.26122774,1638.2,1638.1,6.1045]
[1744689459045,6.97283,1638.4,1638.1,6.1045]
[1744689459246,0.26122774,1638.2,1638.1,6.1045]
[1744689459412,6.97283,1638.4,1638.1,6.1045]
[1744689459613,8.824431,1638.4,1638.1,6.1045]
[1744689459809,0.26122774,1638.3,1638.1,6.1045]
[1744689460154,8.824431,1638.4,1638.1,6.1045]
[1744689460356,0.26122774,1638.3,1638.1,6.1045]
[1744689460655,8.824431,1638.4,1638.1,6.1045]
[1744689460656,6.97283,1638.4,1638.1,6.1045]
[1744689460855,0.26122774,1638.2,1638.1,6.1045]
[1744689461091,13.07665,1638.4,1638.0,6.87258]
[1744689461248,0.26122774,1638.2,1637.9,6.10521]
[1744689461437,0.8005,1638.2,1637.9,6.10521]
[1744689461781,0.26122774,1638.1,1638.0,6.10483]
[1744689462075,6.95404,1638.4,1638.0,6.44244547]
[1744689462283,0.26122774,1638.1,1638.0,6.44244547]
[1744689462640,6.95404,1638.4,1638.0,12.54724547]
[1744689462879,0.26122774,1638.1,1638.0,12.54724547]
[1744689463074,0.8505,1638.4,1638.1,6.1044]
[1744689463283,6.95402,1638.4,1638.1,6.1044]
[1744689464469,6.15352,1638.4,1638.1,6.8589]
[1744689465783,6.15352,1638.4,1638.2,0.33818854]
[1744689466563,6.15352,1638.4,1638.1,6.8589]
[1744689467219,0.8015,1638.3,1637.8,3.8235]
[1744689467352,6.10477,1638.1,1637.7,12.21184]
[1744689467552,6.95516,1638.4,1637.9,0.8235]
[1744689467759,0.8515,1638.4,1637.9,0.8235]
[1744689467969,6.2915,1638.4,1638.0,6.44320195]
[1744689468296,12.39507,1638.4,1638.0,12.54820195]
[1744689468513,18.4989,1638.4,1638.0,6.44320195]
[1744689468797,12.2082,1638.3,1638.1,0.33820195]
[1744689468998,6.10399,1638.3,1638.1,0.33820195]
[1744689469798,6.85876,1638.2,1638.0,0.33820195]
[1744689470098,0.7545,1638.2,1638.0,0.33820195]
[1744689470264,0.7545,1638.2,1637.9,6.44355195]
[1744689470464,0.7545,1638.2,1637.9,7.24015195]
[1744689470897,0.7545,1638.2,1638.0,0.33820195]
[1744689472312,6.85877,1638.2,1638.0,0.33820195]
[1744689474008,6.85877,1638.2,1637.9,0.33820195]
[1744689474812,6.85877,1638.2,1638.0,0.33820195]
[1744689475119,6.790527,1638.1,1638.0,0.33820195]
[1744689475417,6.790527,1638.1,1637.9,0.33820195]
[1744689475619,6.10465,1638.1,1637.9,0.33820195]
[1744689475807,6.85877,1638.2,1637.9,0.33820195]
[1744689476211,0.7545,1638.2,1638.0,6.10491]
[1744689476413,12.20814,1638.3,1638.1,0.33820195]
[1744689476598,13.552496,1638.3,1638.1,0.33820195]
[1744689476787,12.42034,1638.4,1638.1,0.33820195]
[1744689477119,18.52411,1638.4,1638.1,0.33820195]
[1744689477305,12.42034,1638.4,1638.1,0.33820195]
[1744689477510,0.8768,1638.4,1638.1,4.52138948]
[1744689477712,0.05,1638.4,1638.1,4.82856466]
[1744689477881,0.05,1638.4,1638.1,10.93309466]
[1744689478207,6.3652995,1638.3,1638.2,0.33820195]
[1744689479079,6.10436,1638.2,1638.0,0.33820195]
[1744689479480,0.26174297,1638.1,1638.0,0.33820195]
[1744689479945,6.10436,1638.2,1638.0,0.33820195]
[1744689480260,0.87217897,1638.1,1637.9,0.33820195]
[1744689480549,0.26174297,1638.1,1637.9,0.33820195]
[1744689480848,6.10436,1638.2,1637.9,0.33820195]
[1744689481071,6.10436,1638.2,1638.0,0.33820195]
[1744689481553,6.10436,1638.2,1637.9,0.33820195]
[1744689481750,12.34101,1638.3,1637.9,4.06896466]
[1744689481924,12.34101,1638.3,1637.9,10.17411466]
[1744689482423,5.435,1638.3,1638.0,6.91486]
[1744689482611,5.435,1638.3,1638.0,7.25306195]
[1744689483120,0.05,1638.4,1638.1,3.73076271]
[1744689483325,6.15364,1638.4,1638.1,3.73076271]
[1744689484051,12.25737,1638.4,1638.1,3.73076271]
[1744689484207,13.564817,1638.4,1638.0,6.91493]
[1744689484650,13.564957,1638.4,1638.1,0.33863114]
[1744689485061,6.10406,1638.3,1638.1,0.33863114]
[1744689485353,6.10426,1638.2,1637.9,9.83609271]
[1744689486153,6.10426,1638.2,1638.0,0.3387102]
[1744689486454,6.90896,1638.3,1638.0,0.3387102]
[1744689486624,13.0131,1638.3,1637.9,9.83600271]
[1744689487363,6.10426,1638.2,1637.9,9.83600271]
[1744689487978,14.31944,1638.3,1637.9,9.83600271]
[1744689488142,6.10428,1638.2,1637.9,9.83600271]
[1744689488334,6.10428,1638.2,1637.8,6.85642]
[1744689488533,6.10468,1638.1,1638.0,0.33875899]
[1744689489160,8.148776,1638.1,1638.0,0.33875899]
[1744689489965,8.148776,1638.1,1637.7,16.76677271]
[1744689490162,13.03285,1638.1,1637.7,10.66069271]
[1744689490550,6.10504,1638.0,1637.7,10.66069271]
[1744689490755,6.10564,1637.9,1637.6,0.45997863]
[1744689490932,6.10564,1637.9,1637.5,15.66136271]
[1744689490933,6.92884,1637.9,1637.7,0.33884157]
[1744689491434,14.337817,1637.9,1637.7,0.33884157]
[1744689491665,8.232177,1637.9,1637.7,0.33884157]
[1744689491866,8.232177,1637.9,1637.5,6.93067]
[1744689492183,6.1058,1637.8,1637.5,6.93067]
[1744689492469,12.21182,1637.8,1637.4,9.83800271]
[1744689492672,12.21182,1637.8,1637.6,0.33868504]
[1744689493168,0.25751819,1637.7,1637.4,9.83800271]
[1744689493371,6.36367819,1637.7,1637.4,9.83800271]
[1744689493558,6.1065,1637.6,1637.3,3.7961]
[1744689493938,0.25734634,1637.5,1637.3,3.7961]
[1744689494143,0.25734634,1637.5,1637.3,9.90364]
[1744689494357,0.25734634,1637.5,1637.4,9.83800271]
[1744689494668,0.25691671,1637.5,1637.4,9.83800271]
[1744689494881,0.25691671,1637.5,1637.4,10.29306135]
[1744689495038,11.54078,1637.8,1637.4,16.40030135]
[1744689495242,0.25691671,1637.7,1637.4,16.40030135]
[1744689495975,0.25691671,1637.7,1637.4,10.29306135]
[1744689496574,0.25691671,1637.7,1637.4,16.40013135]
[1744689496761,0.25691671,1637.7,1637.4,10.29289135]
[1744689497138,0.25691671,1637.7,1637.5,0.33841425]
[1744689497479,6.36305671,1637.7,1637.5,0.33841425]
[1744689497973,0.25691671,1637.7,1637.4,6.55414081]
[1744689498133,0.25691671,1637.7,1637.4,6.10705]
[1744689498338,0.25691671,1637.7,1637.5,6.10672]
[1744689498541,0.25691671,1637.7,1637.6,6.10649]
[1744689499170,0.25691671,1637.7,1637.5,10.58898271]
[1744689499474,0.25674484,1637.6,1637.5,16.69568271]
[1744689499669,0.25674484,1637.6,1637.3,6.73076271]
[1744689499873,13.02615,1637.7,1637.3,9.10748]
[1744689500074,0.25425377,1637.5,1637.4,0.33843578]
[1744689500366,13.02615,1637.7,1637.4,0.33843578]
[1744689500672,0.25425377,1637.5,1637.4,0.33843578]
[1744689500971,0.25425377,1637.6,1637.4,0.33843578]
[1744689501150,13.02609,1637.7,1637.4,0.33843578]
[1744689501351,0.25425377,1637.5,1637.4,0.33843578]
[1744689501860,13.02609,1637.7,1637.4,0.33843578]
[1744689502043,0.25425377,1637.5,1637.4,0.33843578]
[1744689502251,13.02609,1637.7,1637.4,0.33843578]
[1744689502465,0.25425377,1637.5,1637.4,0.33843578]
[1744689502661,13.02609,1637.7,1637.4,0.33843578]
[1744689502861,0.25425377,1637.5,1637.4,0.33843578]
[1744689503060,13.02609,1637.7,1637.4,0.33843578]
[1744689503263,0.25425377,1637.5,1637.4,0.33843578]
[1744689503462,13.02609,1637.7,1637.4,0.33843578]
[1744689503659,13.02609,1637.7,1637.2,10.60908271]
[1744689503660,6.36112377,1637.5,1637.2,10.60908271]
[1744689503852,6.10687,1637.5,1637.2,10.60908271]
[1744689504060,0.25425377,1637.4,1637.2,10.60908271]
[1744689504259,6.36161377,1637.4,1637.1,0.44851015]
[1744689504463,6.36161377,1637.4,1637.0,16.71892271]
[1744689504762,0.25425377,1637.4,1637.1,6.10803]
[1744689504964,6.2299,1637.5,1637.2,9.83860271]
[1744689505166,0.2529648,1637.3,1637.2,9.83860271]
[1744689505362,6.2299,1637.5,1637.2,9.83860271]
[1744689505568,0.2529648,1637.3,1637.2,9.83860271]
[1744689506048,6.2299,1637.5,1637.2,9.83860271]
[1744689506381,0.2529648,1637.4,1637.2,9.83860271]
[1744689507357,6.10814,1637.2,1636.9,0.4499194]
[1744689507680,6.10814,1637.2,1636.8,13.07185421]
[1744689507983,0.25047212,1637.1,1636.8,13.01077]
[1744689508184,0.25047212,1637.1,1636.9,3.73076271]
[1744689508395,6.10814,1637.2,1636.9,3.73076271]
[1744689508867,0.25047212,1637.1,1636.9,3.73076271]
[1744689509067,6.10814,1637.2,1636.8,10.63215271]
[1744689509265,0.25047212,1637.0,1636.8,10.69323961]
[1744689509484,6.10814,1637.2,1636.8,16.80255961]